[Event "Titled Tuesday Blitz October 5 2021"]
[White "Wagner, Dinara"]
[Black "Sjugirov, Sanan"]
[WhiteFideId "24157570"]
[BlackFideId "4189302"]
[WhiteElo "2216"]
[BlackElo "2654"]
[Result "0-1"]
[Round "01"]
[TimeControl "180+1"]
[Date "2021.10.05"]
[WhiteClock "0:00:11"]
[BlackClock "0:00:10"]

1. d4 {[%clk 0:02:57]}  Nf6 {[%clk 0:02:58]} 2. c4 {[%clk 0:02:57]}  e6 {[%clk 0:02:58]} 3. Nf3 {[%clk 0:02:57]}  b6 {[%clk 0:02:58]} 4. a3 {[%clk 0:02:56]}  Bb7 {[%clk 0:02:58]} 5. Nc3 {[%clk 0:02:56]}  Ne4 {[%clk 0:02:58]} 6. Nxe4 {[%clk 0:02:53]}  Bxe4 {[%clk 0:02:59]} 7. e3 {[%clk 0:02:53]}  d6 {[%clk 0:02:53]} 8. Bd3 {[%clk 0:02:53]}  Bb7 {[%clk 0:02:54]} 9. e4 {[%clk 0:02:47]}  Nd7 {[%clk 0:02:53]} 10. O-O {[%clk 0:02:46]}  g6 {[%clk 0:02:53]} 11. Bg5 {[%clk 0:02:41]}  Be7 {[%clk 0:02:51]} 12. Bh6 {[%clk 0:02:41]}  Nf6 {[%clk 0:02:35]} 13. Re1 {[%clk 0:02:26]}  Ng4 {[%clk 0:02:35]} 14. Bf4 {[%clk 0:02:21]}  O-O {[%clk 0:02:32]} 15. h3 {[%clk 0:02:21]}  Nf6 {[%clk 0:02:32]} 16. Bh6 {[%clk 0:02:16]}  Re8 {[%clk 0:02:32]} 17. Qd2 {[%clk 0:02:15]}  c5 {[%clk 0:02:10]} 18. d5 {[%clk 0:02:15]}  e5 {[%clk 0:02:06]} 19. b4 {[%clk 0:02:00]}  Nd7 {[%clk 0:02:01]} 20. b5 {[%clk 0:01:51]}  a6 {[%clk 0:01:48]} 21. a4 {[%clk 0:01:51]}  Qc7 {[%clk 0:01:38]} 22. Reb1 {[%clk 0:01:50]}  Ra7 {[%clk 0:01:35]} 23. a5 {[%clk 0:01:30]}  axb5 {[%clk 0:01:32]} 24. axb6 {[%clk 0:01:27]}  Qxb6 {[%clk 0:01:32]} 25. Rxa7 {[%clk 0:01:22]}  Qxa7 {[%clk 0:01:33]} 26. Rxb5 {[%clk 0:01:21]}  Ra8 {[%clk 0:01:27]} 27. Qb2 {[%clk 0:01:14]}  Bc8 {[%clk 0:01:27]} 28. Kh2 {[%clk 0:01:11]}  Qa3 {[%clk 0:01:11]} 29. Qb3 {[%clk 0:00:59]}  Qa1 {[%clk 0:01:02]} 30. Qb1 {[%clk 0:00:56]}  Qxb1 {[%clk 0:00:59]} 31. Rxb1 {[%clk 0:00:56]}  Bd8 {[%clk 0:00:43]} 32. Bd2 {[%clk 0:00:49]}  Nb6 {[%clk 0:00:31]} 33. Be1 {[%clk 0:00:32]}  Bc7 {[%clk 0:00:28]} 34. Nd2 {[%clk 0:00:32]}  Ra3 {[%clk 0:00:26]} 35. Be2 {[%clk 0:00:30]}  Ba6 {[%clk 0:00:23]} 36. Rc1 {[%clk 0:00:20]}  Ra2 {[%clk 0:00:23]} 37. Kg1 {[%clk 0:00:20]}  Bd8 {[%clk 0:00:18]} 38. Nb3 {[%clk 0:00:12]}  Rxe2 {[%clk 0:00:17]} 39. Kf1 {[%clk 0:00:11]}  Rxe4 {[%clk 0:00:16]} 40. Nd2 {[%clk 0:00:09]}  Rd4 {[%clk 0:00:16]} 41. Ra1 {[%clk 0:00:09]}  Nxc4 {[%clk 0:00:14]} 42. Rxa6 {[%clk 0:00:09]}  Nxd2+ {[%clk 0:00:14]} 43. Ke2 {[%clk 0:00:09]}  Bg5 {[%clk 0:00:10]} 44. Ra8+ {[%clk 0:00:09]}  Kg7 {[%clk 0:00:10]} 45. h4 {[%clk 0:00:10]}  Bh6 {[%clk 0:00:10]} 46. g3 {[%clk 0:00:10]}  Nc4 {[%clk 0:00:09]} 47. Ra4 {[%clk 0:00:09]}  Nb6 {[%clk 0:00:09]} 48. Ra6 {[%clk 0:00:09]}  Nxd5 {[%clk 0:00:09]} 49. Rxd6 {[%clk 0:00:09]}  Nf4+ {[%clk 0:00:10]} 50. Kf3 {[%clk 0:00:10]}  Rxd6 {[%clk 0:00:10]} 51. gxf4 {[%clk 0:00:11]}  Bxf4 {[%clk 0:00:10]} 52. Bc3 {[%clk 0:00:11]}  Rd3+ {[%clk 0:00:10]} 0-1


[Site "https://www.chess.com"]

[Event "Titled Tuesday Blitz October 5 2021"]
[White "Dudzinski, Pawel"]
[Black "Acosta, Pablo Ismael"]
[WhiteFideId "1117890"]
[BlackFideId "124311"]
[WhiteElo "2193"]
[BlackElo "2318"]
[Result "1/2-1/2"]
[Round "01"]
[TimeControl "180+1"]
[Date "2021.10.05"]
[WhiteClock "0:00:04"]
[BlackClock "0:00:13"]

1. e4 {[%clk 0:02:57]}  e6 {[%clk 0:02:58]} 2. d4 {[%clk 0:02:57]}  d5 {[%clk 0:02:58]} 3. Nd2 {[%clk 0:02:57]}  c5 {[%clk 0:02:55]} 4. Ngf3 {[%clk 0:02:55]}  Nf6 {[%clk 0:02:47]} 5. exd5 {[%clk 0:02:54]}  Nxd5 {[%clk 0:02:47]} 6. dxc5 {[%clk 0:02:42]}  Bxc5 {[%clk 0:02:46]} 7. Nb3 {[%clk 0:02:42]}  Bb6 {[%clk 0:02:45]} 8. c4 {[%clk 0:02:42]}  Nb4 {[%clk 0:02:41]} 9. Qxd8+ {[%clk 0:02:43]}  Bxd8 {[%clk 0:02:41]} 10. Kd1 {[%clk 0:02:28]}  O-O {[%clk 0:02:40]} 11. a3 {[%clk 0:02:28]}  N4c6 {[%clk 0:02:40]} 12. Kc2 {[%clk 0:02:24]}  e5 {[%clk 0:02:39]} 13. Bd3 {[%clk 0:02:18]}  f5 {[%clk 0:02:39]} 14. c5 {[%clk 0:02:02]}  Be6 {[%clk 0:02:38]} 15. Nfd2 {[%clk 0:01:56]}  e4 {[%clk 0:02:35]} 16. Bc4 {[%clk 0:01:54]}  Bxc4 {[%clk 0:02:23]} 17. Nxc4 {[%clk 0:01:55]}  Nd7 {[%clk 0:02:23]} 18. Bf4 {[%clk 0:01:52]}  Be7 {[%clk 0:02:22]} 19. Bd6 {[%clk 0:01:46]}  b6 {[%clk 0:02:05]} 20. cxb6 {[%clk 0:01:33]}  Nxb6 {[%clk 0:02:01]} 21. Bxe7 {[%clk 0:01:29]}  Nxe7 {[%clk 0:02:00]} 22. Nxb6 {[%clk 0:01:30]}  axb6 {[%clk 0:02:01]} 23. Rac1 {[%clk 0:01:29]}  Rfd8 {[%clk 0:01:59]} 24. Rhd1 {[%clk 0:01:28]}  Kf7 {[%clk 0:01:58]} 25. Nd4 {[%clk 0:01:22]}  Rac8+ {[%clk 0:01:55]} 26. Kb1 {[%clk 0:01:22]}  Rxc1+ {[%clk 0:01:54]} 27. Kxc1 {[%clk 0:01:23]}  Kf6 {[%clk 0:01:51]} 28. Nb5 {[%clk 0:01:17]}  Rc8+ {[%clk 0:01:43]} 29. Kb1 {[%clk 0:01:12]}  Rc5 {[%clk 0:01:43]} 30. Rd6+ {[%clk 0:01:11]}  Ke5 {[%clk 0:01:41]} 31. Rxb6 {[%clk 0:01:11]}  Nd5 {[%clk 0:01:42]} 32. Rb7 {[%clk 0:01:10]}  f4 {[%clk 0:01:42]} 33. b4 {[%clk 0:00:46]}  Rc6 {[%clk 0:01:34]} 34. Rb8 {[%clk 0:00:27]}  Re6 {[%clk 0:01:26]} 35. Rd8 {[%clk 0:00:17]}  e3 {[%clk 0:01:19]} 36. fxe3 {[%clk 0:00:17]}  Nxe3 {[%clk 0:01:09]} 37. Nd4 {[%clk 0:00:15]}  Rg6 {[%clk 0:01:03]} 38. Nf3+ {[%clk 0:00:16]}  Ke4 {[%clk 0:01:01]} 39. Re8+ {[%clk 0:00:14]}  Kd5 {[%clk 0:00:59]} 40. Re5+ {[%clk 0:00:14]}  Kd6 {[%clk 0:00:59]} 41. Rg5 {[%clk 0:00:13]}  Rxg5 {[%clk 0:00:53]} 42. Nxg5 {[%clk 0:00:14]}  Nxg2 {[%clk 0:00:54]} 43. Nxh7 {[%clk 0:00:12]}  f3 {[%clk 0:00:30]} 44. Ng5 {[%clk 0:00:13]}  Ne1 {[%clk 0:00:30]} 45. Kc1 {[%clk 0:00:10]}  Ke5 {[%clk 0:00:25]} 46. Kd2 {[%clk 0:00:10]}  f2 {[%clk 0:00:21]} 47. Ke2 {[%clk 0:00:10]}  Nc2 {[%clk 0:00:22]} 48. Kxf2 {[%clk 0:00:09]}  Nxa3 {[%clk 0:00:23]} 49. Nf3+ {[%clk 0:00:09]}  Kf4 {[%clk 0:00:20]} 50. Nd4 {[%clk 0:00:08]}  Ke4 {[%clk 0:00:20]} 51. Ne6 {[%clk 0:00:08]}  g6 {[%clk 0:00:21]} 52. Nc7 {[%clk 0:00:08]}  Ke5 {[%clk 0:00:20]} 53. b5 {[%clk 0:00:08]}  Kd6 {[%clk 0:00:20]} 54. b6 {[%clk 0:00:09]}  Kc6 {[%clk 0:00:20]} 55. Nd5 {[%clk 0:00:08]}  Nc4 {[%clk 0:00:19]} 56. Ne7+ {[%clk 0:00:07]}  Kxb6 {[%clk 0:00:19]} 57. Nxg6 {[%clk 0:00:08]}  Kc7 {[%clk 0:00:20]} 58. Kf3 {[%clk 0:00:08]}  Kd6 {[%clk 0:00:20]} 59. Kg4 {[%clk 0:00:08]}  Ke6 {[%clk 0:00:20]} 60. Kg5 {[%clk 0:00:08]}  Kf7 {[%clk 0:00:20]} 61. Kh6 {[%clk 0:00:08]}  Kg8 {[%clk 0:00:21]} 62. h4 {[%clk 0:00:07]}  Nd6 {[%clk 0:00:20]} 63. Ne7+ {[%clk 0:00:06]}  Kh8 {[%clk 0:00:20]} 64. Kg6 {[%clk 0:00:05]}  Nc4 {[%clk 0:00:16]} 65. Nc6 {[%clk 0:00:04]}  Ne3 {[%clk 0:00:12]} 66. h5 {[%clk 0:00:05]}  Ng4 {[%clk 0:00:13]} 67. h6 {[%clk 0:00:04]}  Nxh6 {[%clk 0:00:13]} 1/2-1/2


[Site "https://www.chess.com"]

[Event "Titled Tuesday Blitz October 5 2021"]
[White "Dvirnyy, Danyyil"]
[Black "Majdan, Joanna"]
[WhiteFideId "817570"]
[BlackFideId "1121979"]
[WhiteElo "2531"]
[BlackElo "2270"]
[Result "0-1"]
[Round "01"]
[TimeControl "180+1"]
[Date "2021.10.05"]
[WhiteClock "0:00:41"]
[BlackClock "0:00:42"]

1. d4 {[%clk 0:02:51]}  Nf6 {[%clk 0:02:59]} 2. c4 {[%clk 0:02:49]}  e6 {[%clk 0:02:59]} 3. Nf3 {[%clk 0:02:48]}  b6 {[%clk 0:02:59]} 4. g3 {[%clk 0:02:41]}  Ba6 {[%clk 0:02:57]} 5. b3 {[%clk 0:02:41]}  Bb4+ {[%clk 0:02:56]} 6. Bd2 {[%clk 0:02:41]}  Be7 {[%clk 0:02:54]} 7. Bg2 {[%clk 0:02:41]}  c6 {[%clk 0:02:51]} 8. Nc3 {[%clk 0:02:41]}  d5 {[%clk 0:02:51]} 9. Ne5 {[%clk 0:02:42]}  Nfd7 {[%clk 0:02:51]} 10. Nxd7 {[%clk 0:02:33]}  Nxd7 {[%clk 0:02:52]} 11. O-O {[%clk 0:02:27]}  O-O {[%clk 0:02:53]} 12. Re1 {[%clk 0:02:16]}  f5 {[%clk 0:02:53]} 13. e3 {[%clk 0:02:12]}  Nf6 {[%clk 0:02:52]} 14. a4 {[%clk 0:02:11]}  Rc8 {[%clk 0:02:51]} 15. a5 {[%clk 0:02:07]}  dxc4 {[%clk 0:02:40]} 16. axb6 {[%clk 0:02:07]}  Qxb6 {[%clk 0:02:35]} 17. Bf1 {[%clk 0:02:05]}  c5 {[%clk 0:02:31]} 18. Na4 {[%clk 0:02:04]}  Qc6 {[%clk 0:02:24]} 19. Nxc5 {[%clk 0:02:02]}  Bxc5 {[%clk 0:02:18]} 20. Rxa6 {[%clk 0:02:00]}  Qxa6 {[%clk 0:02:15]} 21. Bxc4 {[%clk 0:02:01]}  Qc6 {[%clk 0:02:15]} 22. dxc5 {[%clk 0:02:00]}  Ne4 {[%clk 0:02:11]} 23. Qe2 {[%clk 0:01:59]}  Rcd8 {[%clk 0:02:10]} 24. Bb4 {[%clk 0:01:57]}  Kh8 {[%clk 0:02:03]} 25. Rd1 {[%clk 0:01:54]}  Rxd1+ {[%clk 0:01:59]} 26. Qxd1 {[%clk 0:01:55]}  a5 {[%clk 0:01:59]} 27. Ba3 {[%clk 0:01:39]}  Ng5 {[%clk 0:01:51]} 28. Qd6 {[%clk 0:00:57]}  Nh3+ {[%clk 0:01:40]} 29. Kf1 {[%clk 0:00:57]}  Qh1+ {[%clk 0:01:39]} 30. Ke2 {[%clk 0:00:58]}  Re8 {[%clk 0:01:28]} 31. c6 {[%clk 0:00:51]}  Ng1+ {[%clk 0:01:21]} 32. Kd3 {[%clk 0:00:49]}  Nf3 {[%clk 0:01:01]} 33. c7 {[%clk 0:00:44]}  Qd1+ {[%clk 0:00:45]} 34. Kc3 {[%clk 0:00:44]}  Qe1+ {[%clk 0:00:43]} 35. Kd3 {[%clk 0:00:41]}  Qd2# {[%clk 0:00:42]} 0-1


[Site "https://www.chess.com"]

[Event "Titled Tuesday Blitz October 5 2021"]
[White "Gaehwiler, Gabriel"]
[Black "Sunnika"]
[WhiteFideId "1314530"]
[WhiteElo "2320"]
[BlackElo "2359"]
[Result "1-0"]
[Round "01"]
[TimeControl "180+1"]
[Date "2021.10.05"]
[WhiteClock "0:01:53"]
[BlackClock "0:00:04"]

1. d4 {[%clk 0:03:00]}  d5 {[%clk 0:02:59]} 2. c4 {[%clk 0:03:00]}  c6 {[%clk 0:02:59]} 3. Nf3 {[%clk 0:03:01]}  Nf6 {[%clk 0:02:59]} 4. Nc3 {[%clk 0:03:01]}  a6 {[%clk 0:02:59]} 5. g3 {[%clk 0:03:00]}  dxc4 {[%clk 0:02:54]} 6. a4 {[%clk 0:02:57]}  Bf5 {[%clk 0:02:48]} 7. Bg2 {[%clk 0:02:56]}  a5 {[%clk 0:02:46]} 8. Ne5 {[%clk 0:02:55]}  e6 {[%clk 0:02:42]} 9. Nxc4 {[%clk 0:02:49]}  Bb4 {[%clk 0:02:42]} 10. O-O {[%clk 0:02:49]}  O-O {[%clk 0:02:40]} 11. Bf4 {[%clk 0:02:35]}  Na6 {[%clk 0:02:35]} 12. Rc1 {[%clk 0:02:34]}  h6 {[%clk 0:02:28]} 13. e4 {[%clk 0:02:23]}  Bh7 {[%clk 0:02:23]} 14. f3 {[%clk 0:02:21]}  Qe7 {[%clk 0:02:15]} 15. Qe2 {[%clk 0:02:20]}  Rfd8 {[%clk 0:02:13]} 16. Rfd1 {[%clk 0:02:20]}  Nd7 {[%clk 0:01:45]} 17. Be3 {[%clk 0:02:18]}  Rac8 {[%clk 0:01:23]} 18. Bf2 {[%clk 0:02:14]}  Kh8 {[%clk 0:01:14]} 19. Ne3 {[%clk 0:02:08]}  e5 {[%clk 0:00:55]} 20. d5 {[%clk 0:02:07]}  Ndc5 {[%clk 0:00:51]} 21. Qc2 {[%clk 0:02:06]}  h5 {[%clk 0:00:29]} 22. Bh3 {[%clk 0:02:05]}  Rb8 {[%clk 0:00:26]} 23. Bf5 {[%clk 0:02:03]}  Bxf5 {[%clk 0:00:21]} 24. Nxf5 {[%clk 0:02:04]}  Qf6 {[%clk 0:00:21]} 25. Kg2 {[%clk 0:01:58]}  g6 {[%clk 0:00:21]} 26. Ne3 {[%clk 0:01:58]}  Kh7 {[%clk 0:00:19]} 27. Nc4 {[%clk 0:01:56]}  b5 {[%clk 0:00:15]} 28. Ne3 {[%clk 0:01:56]}  Bxc3 {[%clk 0:00:10]} 29. bxc3 {[%clk 0:01:56]}  Nxa4 {[%clk 0:00:09]} 30. Ra1 {[%clk 0:01:55]}  N4c5 {[%clk 0:00:06]} 31. Rxa5 {[%clk 0:01:54]}  Nc7 {[%clk 0:00:02]} 32. Ra7 {[%clk 0:01:54]}  Rb7 {[%clk 0:00:02]} 33. Rxb7 {[%clk 0:01:53]}  Nxb7 {[%clk 0:00:03]} 34. Qb3 {[%clk 0:01:52]}  Qe6 {[%clk 0:00:03]} 35. dxe6 {[%clk 0:01:52]}  Rxd1 {[%clk 0:00:02]} 36. Qxd1 {[%clk 0:01:52]}  Nxe6 {[%clk 0:00:03]} 37. Qd7 {[%clk 0:01:53]}  Nbc5 {[%clk 0:00:03]} 38. Qxf7+ {[%clk 0:01:53]}  Kh6 {[%clk 0:00:04]} 39. Ng4+ {[%clk 0:01:53]}  hxg4 {[%clk 0:00:03]} 40. Be3+ {[%clk 0:01:53]}  g5 {[%clk 0:00:04]} 41. Qf6+ {[%clk 0:01:53]}  Kh7 {[%clk 0:00:04]} 42. fxg4 {[%clk 0:01:53]} 1-0


[Site "https://www.chess.com"]

[Event "Titled Tuesday Blitz October 5 2021"]
[White "Gorin, Leonid"]
[Black "Unneland, Mathias"]
[WhiteFideId "4131991"]
[BlackFideId "1525581"]
[WhiteElo "2363"]
[BlackElo "1975"]
[Result "1-0"]
[Round "01"]
[TimeControl "180+1"]
[Date "2021.10.05"]
[WhiteClock "0:01:59"]
[BlackClock "0:00:47"]

1. e4 {[%clk 0:03:00]}  e5 {[%clk 0:02:55]} 2. Nf3 {[%clk 0:03:00]}  Nc6 {[%clk 0:02:55]} 3. Bb5 {[%clk 0:03:00]}  Nf6 {[%clk 0:02:55]} 4. O-O {[%clk 0:02:59]}  Nxe4 {[%clk 0:02:55]} 5. d4 {[%clk 0:02:59]}  Nd6 {[%clk 0:02:53]} 6. Bxc6 {[%clk 0:02:59]}  dxc6 {[%clk 0:02:54]} 7. dxe5 {[%clk 0:02:59]}  Nf5 {[%clk 0:02:54]} 8. Qxd8+ {[%clk 0:02:59]}  Kxd8 {[%clk 0:02:55]} 9. Rd1+ {[%clk 0:02:59]}  Ke8 {[%clk 0:02:52]} 10. Nc3 {[%clk 0:02:59]}  Be7 {[%clk 0:02:47]} 11. h3 {[%clk 0:02:58]}  Nh4 {[%clk 0:02:34]} 12. Nxh4 {[%clk 0:02:56]}  Bxh4 {[%clk 0:02:35]} 13. Ne2 {[%clk 0:02:54]}  Bd7 {[%clk 0:01:52]} 14. g4 {[%clk 0:02:51]}  h5 {[%clk 0:01:49]} 15. f3 {[%clk 0:02:51]}  Rd8 {[%clk 0:01:44]} 16. Kg2 {[%clk 0:02:47]}  Be6 {[%clk 0:01:35]} 17. Be3 {[%clk 0:02:43]}  b6 {[%clk 0:01:31]} 18. Nf4 {[%clk 0:02:42]}  hxg4 {[%clk 0:01:26]} 19. hxg4 {[%clk 0:02:40]}  Bc8 {[%clk 0:01:13]} 20. Rh1 {[%clk 0:02:23]}  Ke7 {[%clk 0:01:13]} 21. Nh5 {[%clk 0:02:22]}  g5 {[%clk 0:01:06]} 22. Ng7 {[%clk 0:02:11]}  Rhg8 {[%clk 0:01:00]} 23. Rxh4 {[%clk 0:02:04]}  Rxg7 {[%clk 0:00:51]} 24. Rh5 {[%clk 0:02:03]}  f6 {[%clk 0:00:51]} 25. Re1 {[%clk 0:02:02]}  Kf7 {[%clk 0:00:47]} 26. exf6 {[%clk 0:01:59]} 1-0


[Site "https://www.chess.com"]

[Event "Titled Tuesday Blitz October 5 2021"]
[White "Hoffmann, Asa"]
[Black "Fier, Alexandr"]
[WhiteFideId "2001470"]
[BlackFideId "2107139"]
[WhiteElo "2117"]
[BlackElo "2569"]
[Result "0-1"]
[Round "01"]
[TimeControl "180+1"]
[Date "2021.10.05"]
[WhiteClock "0:01:07"]
[BlackClock "0:01:38"]

1. d4 {[%clk 0:02:50]}  Nf6 {[%clk 0:03:00]} 2. Bg5 {[%clk 0:02:48]}  Ne4 {[%clk 0:02:59]} 3. Bf4 {[%clk 0:02:48]}  g5 {[%clk 0:02:59]} 4. Bc1 {[%clk 0:02:45]}  g4 {[%clk 0:02:59]} 5. f3 {[%clk 0:02:40]}  gxf3 {[%clk 0:02:58]} 6. exf3 {[%clk 0:02:39]}  Nf6 {[%clk 0:02:58]} 7. Bd3 {[%clk 0:02:38]}  b6 {[%clk 0:02:55]} 8. Qe2 {[%clk 0:02:36]}  Bb7 {[%clk 0:02:55]} 9. Nh3 {[%clk 0:02:35]}  e6 {[%clk 0:02:55]} 10. c3 {[%clk 0:02:29]}  c5 {[%clk 0:02:52]} 11. Be3 {[%clk 0:02:27]}  cxd4 {[%clk 0:02:51]} 12. Bxd4 {[%clk 0:02:26]}  Nc6 {[%clk 0:02:51]} 13. Bf2 {[%clk 0:02:26]}  Rg8 {[%clk 0:02:48]} 14. Bg3 {[%clk 0:02:14]}  Bc5 {[%clk 0:02:42]} 15. Nd2 {[%clk 0:02:12]}  Qe7 {[%clk 0:02:36]} 16. Ne4 {[%clk 0:02:10]}  Nxe4 {[%clk 0:02:35]} 17. Bxe4 {[%clk 0:02:09]}  O-O-O {[%clk 0:02:35]} 18. Bxh7 {[%clk 0:02:05]}  Rg7 {[%clk 0:02:30]} 19. Be4 {[%clk 0:02:00]}  f5 {[%clk 0:02:30]} 20. Bd3 {[%clk 0:01:59]}  Bd6 {[%clk 0:02:22]} 21. Bxd6 {[%clk 0:01:51]}  Qxd6 {[%clk 0:02:23]} 22. O-O-O {[%clk 0:01:51]}  Qc5 {[%clk 0:02:23]} 23. Rhg1 {[%clk 0:01:45]}  Rdg8 {[%clk 0:02:21]} 24. Nf4 {[%clk 0:01:40]}  Ne5 {[%clk 0:02:16]} 25. Ba6 {[%clk 0:01:28]}  Bxa6 {[%clk 0:02:04]} 26. Qxa6+ {[%clk 0:01:27]}  Kb8 {[%clk 0:02:05]} 27. Qe2 {[%clk 0:01:25]}  Qc7 {[%clk 0:02:00]} 28. g3 {[%clk 0:01:23]}  Rc8 {[%clk 0:01:52]} 29. Rge1 {[%clk 0:01:21]}  Nc4 {[%clk 0:01:52]} 30. Kb1 {[%clk 0:01:20]}  Rh7 {[%clk 0:01:51]} 31. Rd4 {[%clk 0:01:19]}  Na5 {[%clk 0:01:38]} 32. Qe5 {[%clk 0:01:15]}  Qxe5 {[%clk 0:01:36]} 33. Rxe5 {[%clk 0:01:14]}  Nc6 {[%clk 0:01:37]} 34. Re2 {[%clk 0:01:07]}  e5 {[%clk 0:01:38]} 0-1


[Site "https://www.chess.com"]

[Event "Titled Tuesday Blitz October 5 2021"]
[White "Holt, Conrad"]
[Black "Rodchenkov, Vitaly"]
[WhiteFideId "2034387"]
[BlackFideId "4152964"]
[WhiteElo "2586"]
[BlackElo "2337"]
[Result "1-0"]
[Round "01"]
[TimeControl "180+1"]
[Date "2021.10.05"]
[WhiteClock "0:02:11"]
[BlackClock "0:01:36"]

1. d4 {[%clk 0:03:00]}  Nf6 {[%clk 0:02:59]} 2. c4 {[%clk 0:03:00]}  e6 {[%clk 0:02:58]} 3. Nc3 {[%clk 0:02:59]}  Bb4 {[%clk 0:02:58]} 4. Qc2 {[%clk 0:02:59]}  c5 {[%clk 0:02:57]} 5. dxc5 {[%clk 0:02:59]}  O-O {[%clk 0:02:56]} 6. a3 {[%clk 0:02:58]}  Bxc5 {[%clk 0:02:54]} 7. Bf4 {[%clk 0:02:59]}  d5 {[%clk 0:02:51]} 8. e3 {[%clk 0:02:56]}  Nc6 {[%clk 0:02:51]} 9. Nf3 {[%clk 0:02:54]}  a6 {[%clk 0:02:45]} 10. Rd1 {[%clk 0:02:50]}  Qe7 {[%clk 0:02:41]} 11. Bg5 {[%clk 0:02:48]}  dxc4 {[%clk 0:02:40]} 12. Bxc4 {[%clk 0:02:42]}  b5 {[%clk 0:02:39]} 13. Ne4 {[%clk 0:02:35]}  bxc4 {[%clk 0:02:32]} 14. Qxc4 {[%clk 0:02:31]}  Ba7 {[%clk 0:01:58]} 15. Nxf6+ {[%clk 0:02:15]}  gxf6 {[%clk 0:01:57]} 16. Bh6 {[%clk 0:02:16]}  e5 {[%clk 0:01:39]} 17. Bxf8 {[%clk 0:02:11]}  Kh8 {[%clk 0:01:36]} 1-0


[Site "https://www.chess.com"]

[Event "Titled Tuesday Blitz October 5 2021"]
[White "Ivanisevic, Ivan"]
[Black "Yeritsyan, Hayk"]
[WhiteFideId "912417"]
[BlackFideId "13307320"]
[WhiteElo "2499"]
[BlackElo "2367"]
[Result "1-0"]
[Round "01"]
[TimeControl "180+1"]
[Date "2021.10.05"]
[WhiteClock "0:00:23"]
[BlackClock "0:00:01"]

1. c4 {[%clk 0:03:00]}  Nf6 {[%clk 0:02:58]} 2. Nc3 {[%clk 0:03:00]}  c5 {[%clk 0:02:58]} 3. g3 {[%clk 0:03:00]}  e6 {[%clk 0:02:56]} 4. Nf3 {[%clk 0:03:00]}  b6 {[%clk 0:02:56]} 5. Bg2 {[%clk 0:02:58]}  Bb7 {[%clk 0:02:57]} 6. O-O {[%clk 0:02:57]}  a6 {[%clk 0:02:55]} 7. Re1 {[%clk 0:02:57]}  d6 {[%clk 0:02:47]} 8. e4 {[%clk 0:02:57]}  Be7 {[%clk 0:02:43]} 9. d4 {[%clk 0:02:57]}  cxd4 {[%clk 0:02:42]} 10. Nxd4 {[%clk 0:02:58]}  Qc7 {[%clk 0:02:43]} 11. b3 {[%clk 0:02:57]}  Nbd7 {[%clk 0:02:37]} 12. Nd5 {[%clk 0:02:53]}  exd5 {[%clk 0:02:26]} 13. exd5 {[%clk 0:02:54]}  Ne5 {[%clk 0:02:27]} 14. f4 {[%clk 0:02:50]}  Ng6 {[%clk 0:02:26]} 15. Nf5 {[%clk 0:02:28]}  O-O-O {[%clk 0:02:21]} 16. Be3 {[%clk 0:02:16]}  Kb8 {[%clk 0:02:10]} 17. Qd4 {[%clk 0:02:13]}  Ng4 {[%clk 0:01:52]} 18. Nxe7 {[%clk 0:02:07]}  Nxe3 {[%clk 0:01:45]} 19. Nxg6 {[%clk 0:01:50]}  Nxg2 {[%clk 0:01:37]} 20. Re7 {[%clk 0:01:47]}  Nh4 {[%clk 0:00:40]} 21. gxh4 {[%clk 0:00:43]}  Qc8 {[%clk 0:00:39]} 22. Nxh8 {[%clk 0:00:40]}  Qg4+ {[%clk 0:00:38]} 23. Kf1 {[%clk 0:00:39]}  Qf3+ {[%clk 0:00:28]} 24. Ke1 {[%clk 0:00:37]}  Rxh8 {[%clk 0:00:28]} 25. Kd2 {[%clk 0:00:35]}  Ka7 {[%clk 0:00:17]} 26. Rae1 {[%clk 0:00:34]}  Rc8 {[%clk 0:00:12]} 27. Rxf7 {[%clk 0:00:27]}  Qg2+ {[%clk 0:00:11]} 28. Re2 {[%clk 0:00:26]}  Qg6 {[%clk 0:00:04]} 29. Qxg7 {[%clk 0:00:24]}  Qxg7 {[%clk 0:00:01]} 30. Rxg7 {[%clk 0:00:23]} 1-0


[Site "https://www.chess.com"]

[Event "Titled Tuesday Blitz October 5 2021"]
[White "Kabanov, Nikolai"]
[Black "De Silva, L M S T"]
[WhiteFideId "4127820"]
[BlackFideId "9953698"]
[WhiteElo "2303"]
[BlackElo "1621"]
[Result "0-1"]
[Round "01"]
[TimeControl "180+1"]
[Date "2021.10.05"]
[WhiteClock "0:00:06"]
[BlackClock "0:01:38"]

1. e4 {[%clk 0:03:00]}  e5 {[%clk 0:02:59]} 2. Nf3 {[%clk 0:03:00]}  Nc6 {[%clk 0:02:59]} 3. Bc4 {[%clk 0:03:01]}  Nf6 {[%clk 0:03:00]} 4. Ng5 {[%clk 0:03:00]}  d5 {[%clk 0:03:00]} 5. exd5 {[%clk 0:03:01]}  Na5 {[%clk 0:03:00]} 6. Bb5+ {[%clk 0:03:01]}  c6 {[%clk 0:03:00]} 7. dxc6 {[%clk 0:03:02]}  bxc6 {[%clk 0:03:00]} 8. Be2 {[%clk 0:03:02]}  h6 {[%clk 0:02:59]} 9. Nf3 {[%clk 0:03:02]}  e4 {[%clk 0:02:59]} 10. Ne5 {[%clk 0:03:02]}  Bd6 {[%clk 0:02:59]} 11. d4 {[%clk 0:03:02]}  exd3 {[%clk 0:03:00]} 12. Nxd3 {[%clk 0:03:01]}  O-O {[%clk 0:03:00]} 13. O-O {[%clk 0:02:58]}  Qc7 {[%clk 0:03:01]} 14. h3 {[%clk 0:02:58]}  c5 {[%clk 0:03:01]} 15. Nc3 {[%clk 0:02:35]}  Rb8 {[%clk 0:02:57]} 16. Re1 {[%clk 0:02:10]}  Bf5 {[%clk 0:02:53]} 17. Rb1 {[%clk 0:02:00]}  c4 {[%clk 0:02:44]} 18. Be3 {[%clk 0:01:25]}  cxd3 {[%clk 0:02:40]} 19. Bxd3 {[%clk 0:01:26]}  Rfd8 {[%clk 0:02:35]} 20. Kh1 {[%clk 0:01:10]}  Bxd3 {[%clk 0:02:30]} 21. cxd3 {[%clk 0:00:59]}  Bf4 {[%clk 0:02:29]} 22. Qa4 {[%clk 0:00:53]}  Bxe3 {[%clk 0:02:26]} 23. Rxe3 {[%clk 0:00:54]}  Nc6 {[%clk 0:02:26]} 24. b3 {[%clk 0:00:37]}  Nd4 {[%clk 0:02:23]} 25. Ne4 {[%clk 0:00:32]}  Nxe4 {[%clk 0:02:24]} 26. dxe4 {[%clk 0:00:30]}  Ne6 {[%clk 0:02:24]} 27. Qa6 {[%clk 0:00:24]}  Rd6 {[%clk 0:02:22]} 28. Qe2 {[%clk 0:00:23]}  Rbd8 {[%clk 0:02:21]} 29. a4 {[%clk 0:00:22]}  Rd2 {[%clk 0:02:19]} 30. Qf3 {[%clk 0:00:20]}  Qc2 {[%clk 0:02:11]} 31. Rf1 {[%clk 0:00:19]}  Rd1 {[%clk 0:02:02]} 32. Rxd1 {[%clk 0:00:18]}  Rxd1+ {[%clk 0:02:02]} 33. Kh2 {[%clk 0:00:18]}  Qc1 {[%clk 0:02:03]} 34. Rd3 {[%clk 0:00:13]}  Rh1+ {[%clk 0:02:03]} 35. Kg3 {[%clk 0:00:14]}  Qg1 {[%clk 0:02:03]} 36. Rc3 {[%clk 0:00:11]}  Qh2+ {[%clk 0:02:03]} 37. Kg4 {[%clk 0:00:12]}  h5+ {[%clk 0:01:51]} 38. Kh4 {[%clk 0:00:09]}  Qb8 {[%clk 0:01:40]} 39. Qxh5 {[%clk 0:00:07]}  Qf4+ {[%clk 0:01:37]} 40. Qg4 {[%clk 0:00:08]}  g5+ {[%clk 0:01:37]} 41. Kh5 {[%clk 0:00:06]}  Ng7+ {[%clk 0:01:38]} 42. Kh6 {[%clk 0:00:06]}  Qf6# {[%clk 0:01:38]} 0-1


[Site "https://www.chess.com"]